bitfinex-derivatives/quotes_ETHF0:USTF0_20250212
["timestamp","ask_amount","ask_price","bid_price","bid_amount"]
[1739398879508,3.2078,2736.5,2734.3,3.2078]
[1739398879807,3.2078,2738.2,2735.9,3.2078]
[1739398880004,3.2078,2738.0,2735.0,3.2078]
[1739398880202,8.75741384,2738.4,2733.1,8.75741384]
[1739398880203,3.2078,2735.1,2734.1,3.2078]
[1739398880400,3.2078,2735.7,2732.9,3.2078]
[1739398880709,3.2078,2737.2,2735.2,3.2078]
[1739398880908,19.097,2737.2,2735.2,3.2078]
[1739398881118,3.2078,2736.9,2735.6,3.2078]
[1739398881312,3.2078,2736.8,2733.8,3.2078]
[1739398881616,3.2078,2736.0,2733.9,3.2078]
[1739398881911,3.2078,2735.0,2732.9,3.2078]
[1739398882115,3.2078,2734.4,2732.0,3.2078]
[1739398882317,3.2078,2734.2,2732.0,3.2078]
[1739398882608,3.21328526,2733.5,2732.9,0.00548526]
[1739398882808,3.21328526,2733.5,2733.3,3.2078]
[1739398882809,0.00548526,2733.5,2733.3,3.2078]
[1739398883013,3.2078,2734.8,2732.9,3.2078]
[1739398883213,3.2078,2735.7,2733.7,3.2078]
[1739398883406,3.2078,2736.5,2734.5,3.2078]
[1739398883602,3.2078,2736.5,2733.0,0.3664]
[1739398883603,6.0,2736.7,2733.9,3.2078]
[1739398883815,3.2078,2735.6,2733.1,4.807449]
[1739398884017,3.2078,2734.8,2733.2,0.0731743]
[1739398884316,3.2078,2734.1,2733.2,0.0731743]
[1739398884614,22.3218,2734.0,2733.7,0.00548526]
[1739398884816,19.132,2734.0,2733.7,0.00548526]
[1739398885111,3.2078,2733.9,2732.0,3.2078]
[1739398885309,3.2078,2733.8,2732.1,0.07320376]
[1739398885714,3.2078,2733.5,2732.1,0.07320376]
[1739398886210,3.2078,2733.2,2732.8,0.0378]
[1739398886406,3.2078,2732.9,2732.8,0.0378]
[1739398886606,19.132,2737.2,2732.9,5.21126722]
[1739398886809,0.07307003,2737.1,2733.9,3.2078]
[1739398887017,0.07307003,2737.1,2736.5,8.75741384]
[1739398887312,8.75741384,2741.5,2732.8,0.0378]
[1739398887313,3.2078,2741.8,2737.5,1.82635]
[1739398887614,3.2078,2742.3,2739.0,3.2078]
[1739398887812,11.96521384,2741.4,2737.6,12.51218909]
[1739398888117,0.00547525,2739.9,2738.7,3.2078]
[1739398888313,0.07295808,2741.3,2739.8,3.2078]
[1739398888512,3.2078,2743.9,2742.0,3.2078]
[1739398888818,0.01,2742.3,2740.5,3.2078]
[1739398889119,0.07293414,2742.2,2741.5,3.0727324]
[1739398889310,0.07293414,2742.2,2741.0,3.0727324]
[1739398889513,0.00547525,2742.1,2741.6,0.00547525]
[1739398889717,3.2078,2742.0,2739.4,3.2078]
[1739398889919,0.00547525,2742.1,2739.9,3.2078]
[1739398890210,3.2078,2739.6,2739.3,0.0378]
[1739398890409,3.2078,2739.6,2737.5,3.2078]
[1739398890410,19.136,2739.5,2737.1,3.2078]
[1739398890619,19.136,2739.5,2738.5,3.0727324]
[1739398890933,0.00547525,2738.6,2738.0,0.00547525]
[1739398891418,6.00547525,2738.6,2738.0,0.00547525]
[1739398891622,3.2078,2738.5,2738.0,0.00547525]
[1739398891918,6.00547525,2738.6,2738.0,0.00547525]
[1739398892620,0.00547525,2738.6,2738.0,0.00547525]
[1739398892813,1.677,2741.5,2738.1,4.67439774]
[1739398892814,3.2078,2740.3,2738.1,4.67439774]
[1739398893117,3.2078,2740.3,2737.6,3.2078]
[1739398893118,3.2078,2740.3,2740.2,3.06725715]
[1739398893324,3.2078,2741.1,2740.2,3.06725715]
[1739398893519,3.2078,2741.1,2739.7,3.2078]
[1739398893520,3.2078,2741.1,2740.3,3.06725715]
[1739398893819,3.2078,2741.1,2738.1,12.61212317]
[1739398893820,3.2078,2741.1,2740.4,3.2078]
[1739398894017,0.00547525,2741.0,2740.6,3.06725715]
[1739398894320,8.75741384,2740.7,2739.0,4.84605311]
[1739398894519,19.13,2740.6,2738.0,3.2078]
[1739398894721,19.13,2740.6,2739.9,3.06725715]
[1739398895112,19.13,2740.6,2740.2,3.06725715]
[1739398895317,1.0809,2741.3,2740.5,3.06725715]
[1739398895619,0.00547525,2740.7,2740.2,3.06725715]
[1739398895820,3.21327525,2740.7,2740.2,3.06725715]
[1739398896121,3.2078,2740.3,2740.1,0.00547525]
[1739398896426,0.00547525,2740.7,2740.1,0.00547525]
[1739398896718,9.21327525,2740.7,2740.1,0.00547525]
[1739398896915,6.00547525,2740.7,2740.1,0.00547525]
[1739398897220,3.2078,2740.2,2737.9,3.2078]
[1739398897412,6.00547525,2740.7,2738.1,3.2078]
[1739398897413,3.2078,2740.5,2738.1,3.2078]
[1739398897715,19.128,2740.7,2739.2,3.06725715]
[1739398897920,3.2078,2739.7,2738.5,3.06725715]
[1739398898111,3.2078,2739.7,2738.3,3.2078]
[1739398898112,3.2078,2738.7,2736.2,3.2078]
[1739398898315,19.18644474,2738.6,2736.9,3.06725715]
[1739398898514,0.00547525,2737.7,2736.9,3.06725715]
[1739398898717,0.00547525,2737.7,2736.1,3.2078]
[1739398899021,19.128,2737.6,2735.9,3.06725715]
[1739398899222,8.75741384,2738.2,2736.5,3.06725715]
[1739398899223,19.18649981,2737.5,2736.5,3.06725715]
[1739398899519,3.2078,2736.3,2734.2,3.2078]
[1739398899714,19.128,2736.2,2734.8,3.06725715]
[1739398899915,3.2078,2735.3,2734.6,3.06725715]
[1739398900115,3.2078,2735.3,2732.1,0.3656]
[1739398900116,3.2078,2734.7,2733.5,3.06725715]
[1739398900311,22.40136721,2734.6,2732.7,3.06725715]
[1739398900522,8.75741384,2733.2,2730.5,3.2078]
[1739398900719,3.2078,2732.5,2731.4,3.06725715]
[1739398901019,19.135,2734.0,2730.9,3.2078]
[1739398901319,19.19359278,2733.9,2732.3,3.2078]
[1739398901516,8.75741384,2734.8,2733.4,3.06725715]
[1739398901517,3.2078,2734.3,2733.4,3.06725715]
[1739398901718,3.2078,2734.3,2730.5,1.83102]
[1739398901719,19.135,2734.5,2732.6,3.06725715]
[1739398901919,3.2078,2733.3,2730.9,3.2078]
[1739398902120,3.2078,2732.1,2731.5,3.06725715]
[1739398902419,3.2078,2731.8,2731.1,3.06725715]
[1739398902613,0.00548576,2732.1,2731.5,0.00548576]
[1739398903012,22.3578,2733.0,2731.5,0.00548576]
[1739398903013,3.2078,2733.0,2732.0,6.26957139]
[1739398903221,3.2078,2733.3,2731.5,0.00548576]
[1739398903415,0.05859447,2733.2,2731.5,3.06725715]
[1739398903619,0.05859447,2733.1,2731.6,3.06177139]
[1739398903925,3.2078,2733.2,2732.6,3.06177139]
[1739398904117,31.11521384,2734.0,2732.7,3.06177139]
[1739398904313,31.11521384,2734.0,2729.8,1.83152]
[1739398904314,3.2078,2734.0,2733.5,3.06177139]
[1739398904622,19.15,2738.6,2733.9,3.2078]
[1739398904822,8.75741384,2739.3,2734.3,3.2078]
[1739398904823,3.2078,2735.7,2734.3,3.2078]
[1739398905018,19.15,2735.6,2734.9,3.06177139]
[1739398905321,19.15,2735.6,2734.2,3.2078]
[1739398905322,0.00548576,2735.3,2735.1,3.06177139]
[1739398905519,3.2078,2737.6,2736.5,3.06177139]
[1739398905713,0.05849574,2737.5,2735.5,3.06177139]
[1739398905918,0.05849574,2737.5,2735.7,3.06177139]
[1739398906220,0.05849574,2737.5,2732.8,11.10596278]
[1739398906221,3.2078,2737.4,2735.2,3.06177139]
[1739398906521,3.2078,2737.1,2734.5,3.06177139]
[1739398906720,8.75741384,2736.6,2734.3,3.2078]
[1739398906923,3.2078,2736.2,2733.4,3.2078]
[1739398907220,3.2078,2735.2,2734.5,3.2078]
[1739398907423,3.2078,2734.6,2732.1,7.95277605]
[1739398907621,3.2078,2734.9,2733.6,3.06177139]
[1739398907820,3.2078,2734.8,2733.1,3.2078]
[1739398908020,19.153,2735.1,2734.6,3.06177139]
[1739398908214,0.00548576,2734.5,2734.3,3.06177139]
[1739398908414,0.00548576,2734.5,2734.0,0.00548576]
[1739398908615,0.00548576,2734.5,2734.4,3.06177139]
[1739398908922,8.75741384,2736.6,2734.0,0.00548576]
[1739398908923,3.2078,2735.6,2734.1,3.2078]
[1739398909125,3.2078,2737.6,2736.9,3.06177139]
[1739398909327,3.2078,2737.6,2736.2,3.06177139]
[1739398909521,3.2078,2736.3,2735.0,3.2078]
[1739398909916,3.2078,2735.7,2735.4,3.06177139]
[1739398910117,0.00548576,2735.9,2735.4,0.00548576]
[1739398910422,3.2078,2737.2,2735.8,3.2078]
[1739398910625,0.5451,2738.3,2737.1,3.2078]
[1739398910924,19.156,2738.4,2737.8,3.2078]
[1739398911122,0.05847239,2738.3,2735.8,3.2078]
[1739398911325,3.2078,2738.2,2735.7,3.2078]
[1739398911519,3.2078,2737.2,2734.9,7.90239928]
[1739398911719,3.2078,2736.8,2734.8,4.69459928]
[1739398911924,19.21247239,2736.7,2734.8,3.2078]
[1739398912124,19.154,2736.7,2735.1,3.2078]
[1739398912516,0.5783,2738.0,2736.5,0.73082]
[1739398912721,19.21247705,2737.9,2735.8,3.2078]
[1739398912920,0.00548576,2737.5,2737.0,0.00548576]
[1739398913120,3.2078,2737.1,2737.0,0.00548576]
[1739398913521,0.00548576,2737.5,2737.0,0.00548576]
[1739398913722,6.00548576,2737.5,2737.0,0.00548576]
[1739398913930,3.2078,2737.1,2736.1,3.2078]
[1739398914117,3.21328576,2737.5,2736.1,3.2078]
[1739398914323,3.2078,2737.2,2736.1,3.2078]
[1739398914524,3.2078,2737.0,2736.4,3.2078]
[1739398914826,0.00548576,2737.5,2736.4,3.2078]
[1739398915018,3.2078,2737.2,2736.4,3.21328576]
[1739398915428,0.00548576,2737.5,2736.7,3.2078]
[1739398915726,3.2078,2737.4,2736.7,3.2078]
[1739398916030,19.152,2740.8,2737.3,3.2078]
[1739398916226,3.26622343,2740.7,2738.4,3.2078]
[1739398916425,19.152,2740.8,2739.5,3.2078]
[1739398916933,19.152,2740.8,2739.8,3.2078]
[1739398917231,0.00547545,2740.4,2739.9,0.00547545]
[1739398917432,0.00547545,2740.4,2740.3,3.2078]
[1739398917729,3.2078,2743.0,2740.3,3.2078]
[1739398917930,3.2078,2743.0,2741.4,3.2078]
[1739398918126,3.2078,2743.1,2741.4,3.2078]
[1739398918324,3.2078,2743.1,2741.7,3.2078]
[1739398918625,3.2078,2743.0,2741.4,3.2078]
[1739398918830,3.2078,2743.1,2741.7,3.2078]
[1739398919131,0.00547545,2742.1,2741.7,3.2078]
[1739398919430,0.05837591,2742.0,2740.6,3.2078]
[1739398919633,0.05837591,2742.0,2740.3,3.2078]
[1739398919832,3.2078,2741.9,2740.3,3.2078]
[1739398920038,3.2078,2741.9,2739.7,4.79061371]
[1739398920039,0.00547545,2742.1,2740.6,3.2078]
[1739398920325,0.00547545,2742.1,2740.3,3.2078]
[1739398920326,3.2078,2741.0,2740.3,3.2078]
[1739398920522,0.00547545,2742.1,2741.1,0.00547545]
[1739398920722,0.00547545,2741.9,2741.1,0.00547545]
[1739398920924,19.135,2741.8,2741.1,0.00547545]
[1739398921328,28.3428,2741.8,2741.1,0.00547545]
[1739398921531,3.2078,2741.2,2739.7,3.2078]
[1739398921730,3.2078,2741.2,2737.3,1.14093221]
[1739398921731,11.96521384,2740.6,2738.8,3.2078]
[1739398921937,0.13134645,2741.1,2737.1,11.96521384]
[1739398921938,3.2078,2740.4,2737.1,11.96521384]
[1739398922235,0.05838305,2740.3,2738.2,3.2078]
[1739398922426,0.05838305,2740.3,2737.3,3.2078]
[1739398922427,3.2078,2738.3,2737.3,3.2078]
[1739398922625,3.2078,2737.9,2737.3,3.2078]
[1739398922830,19.135,2738.1,2737.5,0.00547545]
[1739398923131,3.2078,2741.4,2738.8,3.2078]
[1739398923337,3.2078,2742.1,2739.9,3.2078]
[1739398923634,0.11760426,2741.0,2740.7,0.00547545]
[1739398923826,3.2078,2742.5,2740.7,0.00547545]
[1739398924024,0.05836416,2742.2,2740.7,0.00547545]
[1739398924238,3.2078,2741.2,2740.7,0.00547545]
[1739398924540,19.132,2741.6,2740.7,0.00547545]
[1739398924926,0.00547545,2741.2,2740.7,0.00547545]
[1739398925239,0.00547545,2741.2,2739.3,3.2078]
[1739398925436,0.00547545,2741.2,2740.2,3.2078]
[1739398925737,0.00547545,2741.2,2739.7,3.2078]
[1739398926234,3.2078,2740.7,2740.2,0.00547545]
[1739398926536,0.01,2742.3,2740.2,0.00547545]
[1739398926734,0.01,2742.3,2740.4,3.2078]
[1739398926933,0.01,2742.3,2741.3,3.2078]
[1739398927328,0.01,2742.3,2741.5,3.2078]
[1739398927638,0.01,2742.3,2740.6,3.2078]
[1739398927938,0.00547545,2742.2,2741.6,0.00547545]
[1739398928135,0.00547545,2742.2,2741.9,3.2078]
[1739398928338,0.00547545,2742.2,2741.6,0.00547545]
[1739398928638,0.00547545,2742.2,2741.6,3.21327545]
[1739398928936,0.00547545,2742.2,2741.6,0.00547545]
[1739398929329,0.00547545,2742.2,2739.3,3.2078]
[1739398929330,3.2078,2742.0,2739.3,3.2078]
[1739398929632,3.2078,2742.0,2737.8,8.75741384]
[1739398929633,6.9418,2741.7,2738.7,3.2078]
[1739398929827,8.75741384,2741.0,2738.2,3.2078]
[1739398930030,3.2078,2739.4,2738.7,3.2078]
[1739398930227,19.123,2739.9,2737.9,3.2078]
[1739398930533,0.00547545,2739.2,2738.6,0.00547545]
[1739398930835,0.00547545,2739.2,2739.1,3.2078]
[1739398931341,0.5848,2742.4,2739.9,1.82477]
[1739398931543,0.5848,2742.4,2740.0,3.2078]
[1739398931735,0.5848,2742.4,2741.2,0.72954]
[1739398931938,0.5848,2742.4,2739.8,1.82481]
[1739398931939,0.5848,2742.4,2741.1,3.2078]
[1739398932136,19.123,2743.2,2741.1,3.2078]
[1739398932343,19.123,2743.2,2741.3,4.79423999]
[1739398932344,3.2078,2743.1,2741.3,4.79423999]
[1739398932542,19.123,2743.2,2740.2,4.79423999]
[1739398932543,0.00547545,2742.0,2740.2,4.79423999]
[1739398932839,0.00547545,2742.0,2737.7,3.2078]
[1739398932840,3.2078,2740.8,2737.7,3.2078]
[1739398933041,3.2078,2740.3,2737.5,3.2078]
[1739398933240,3.2078,2739.4,2737.1,0.83438974]
[1739398933440,19.12,2739.3,2737.2,7.88595426]
[1739398933745,3.2078,2739.1,2738.0,0.00547545]
[1739398933940,0.00547545,2738.5,2738.0,0.00547545]
[1739398934136,0.5479,2740.0,2738.1,4.76669533]
[1739398934333,0.5479,2740.0,2738.2,3.2078]
[1739398934636,0.5479,2740.0,2738.0,0.00547545]
[1739398934637,0.5479,2740.0,2738.6,3.2078]
[1739398934940,0.5479,2740.0,2738.0,0.00547545]
[1739398935142,3.2078,2739.7,2738.0,0.00547545]
[1739398935441,0.00547545,2739.3,2738.0,0.00547545]
[1739398935641,3.2078,2738.3,2738.0,0.00547545]
[1739398935945,3.2078,2738.3,2736.2,3.2078]
[1739398936241,3.2078,2738.3,2734.7,1.45203231]
[1739398936242,3.2078,2737.6,2736.6,3.2078]
[1739398936433,19.125,2737.5,2736.6,3.2078]
[1739398936635,3.2078,2736.9,2736.2,3.2078]
[1739398936836,19.125,2737.3,2736.2,3.2078]
[1739398937147,0.00547545,2736.8,2736.3,0.00547545]
[1739398937444,3.2078,2736.4,2736.3,0.00547545]
[1739398937737,3.2078,2736.4,2733.8,1.29969585]
[1739398937738,3.2078,2736.4,2733.8,3.2078]
[1739398937939,3.2078,2735.9,2733.8,3.2078]
[1739398938140,3.2078,2735.1,2734.4,3.2078]
[1739398938345,3.2078,2736.2,2734.1,3.2078]
[1739398938546,0.05807243,2736.1,2734.1,3.2078]
[1739398938939,0.00548556,2735.4,2734.9,0.00548556]
[1739398939140,19.135,2735.3,2734.9,0.00548556]
[1739398939340,3.2078,2735.0,2733.7,3.2078]
[1739398939649,19.135,2735.3,2733.7,3.2078]
[1739398939846,3.2078,2735.1,2733.1,3.2078]
[1739398940153,19.135,2735.3,2733.4,3.2078]
[1739398940347,19.135,2735.3,2731.6,0.53516972]
[1739398940348,3.2078,2734.1,2733.5,3.2078]
[1739398940643,0.00548556,2734.6,2733.1,3.2078]
[1739398941950,3.2078,2734.4,2732.2,3.2078]
[1739398942143,0.04477679,2734.3,2732.2,3.2078]
[1739398942343,0.00548556,2733.5,2732.3,3.2078]
[1739398942547,19.145,2733.4,2731.9,3.2078]
[1739398942753,3.2078,2732.8,2731.0,3.2078]
[1739398943048,135.7263,2735.1,2729.9,0.24144717]
[1739398943049,0.5843,2735.1,2732.3,3.2078]
[1739398943348,0.0580089,2735.0,2732.9,3.2078]
[1739398943551,3.2078,2735.9,2733.6,0.73159]
[1739398943849,0.0579775,2735.1,2733.0,4.81667055]
[1739398944047,3.2078,2734.9,2732.2,3.2078]
[1739398944347,3.2078,2732.7,2731.8,3.2078]
[1739398944540,3.2078,2732.9,2732.3,3.2078]
[1739398944745,0.00548556,2732.5,2732.0,0.00548556]
[1739398945145,0.00548556,2732.5,2732.1,3.2078]
[1739398945450,976.5799,2744.2,2732.1,3.2078]
[1739398945451,19.154,2734.9,2732.4,3.2078]
[1739398945753,19.154,2734.9,2732.1,4.82387831]
[1739398945754,0.05799726,2734.8,2733.2,3.2078]
[1739398946147,0.5421,2735.2,2733.8,3.2078]
[1739398946451,0.5421,2735.2,2734.4,3.2078]
[1739398946647,0.00548556,2734.8,2734.4,3.2078]
[1739398946949,19.154,2736.4,2734.7,3.2078]
[1739398947149,19.154,2736.4,2735.9,3.2078]
[1739398947549,3.2078,2738.2,2735.9,3.2078]
[1739398947751,19.154,2737.7,2736.2,3.93868]
[1739398947943,19.154,2737.7,2734.5,2.19398]
[1739398947944,0.5858,2738.4,2737.3,3.2078]
[1739398948254,0.00548556,2738.1,2737.3,3.2078]
[1739398948444,0.00548556,2738.1,2737.6,3.2078]
[1739398948755,0.00548556,2738.1,2737.9,3.2078]
[1739398948954,19.154,2739.4,2738.0,3.2078]
[1739398949143,19.154,2739.4,2736.3,8.75741384]
[1739398949144,22.3618,2739.7,2739.0,3.2078]
[1739398949355,19.21186294,2739.6,2737.8,3.2078]
[1739398949554,19.21186294,2739.5,2738.0,3.2078]
[1739398949853,19.21186294,2739.4,2738.0,3.2078]
[1739398950046,3.2078,2738.9,2738.3,3.2078]
[1739398950246,0.00547455,2739.0,2738.4,0.00547455]
[1739398950448,0.05788009,2738.9,2738.4,0.00547455]
[1739398950645,0.00547455,2739.0,2738.4,0.00547455]
[1739398950646,3.2078,2738.7,2738.4,0.00547455]
[1739398950847,3.2078,2738.7,2737.8,3.2078]
[1739398951053,0.05788924,2738.6,2737.8,3.2078]
[1739398951256,3.2078,2738.3,2737.6,3.2078]
[1739398951452,3.2078,2737.9,2736.3,6.42106514]
[1739398951653,3.2078,2736.5,2735.9,3.2078]
[1739398951851,3.2078,2736.1,2735.2,3.21326514]
[1739398952051,19.20594241,2736.4,2736.3,3.21326514]
[1739398952352,28.3558,2736.4,2735.9,0.00547455]
[1739398952543,3.2078,2736.1,2735.9,0.00547455]
[1739398952748,3.2078,2736.1,2734.9,3.2078]
[1739398953053,3.2078,2736.9,2736.0,3.21326514]
[1739398953245,3.2078,2736.9,2735.0,3.2078]
[1739398953246,3.2078,2737.7,2737.0,3.21326514]
[1739398953449,0.05792693,2737.6,2736.9,0.7307]
[1739398953652,0.5959,2738.9,2738.1,3.21326514]
[1739398953955,0.05789595,2738.8,2738.1,3.21326514]
[1739398954152,0.00548526,2738.8,2738.1,3.21326514]
[1739398954360,0.00548526,2738.8,2737.4,3.2078]
[1739398954655,0.05787826,2738.7,2738.2,5.26e-06]
[1739398954851,3.2078,2738.3,2738.2,5.26e-06]
[1739398955051,3.26567826,2738.3,2738.2,5.26e-06]
[1739398955245,6.0,2738.3,2738.2,5.26e-06]
[1739398955458,9.26570484,2738.3,2736.9,3.2078]
[1739398955648,3.2078,2737.5,2737.1,3.21326514]
[1739398955852,3.2078,2737.7,2737.1,3.21326514]
[1739398956051,3.2078,2737.7,2736.9,3.2078]
[1739398956355,3.2078,2737.7,2737.2,3.21326514]
[1739398956744,0.00548526,2738.8,2737.6,3.21326514]
[1739398956948,0.00548526,2738.8,2737.8,3.21326514]
[1739398956949,0.05789139,2738.7,2737.8,3.21326514]
[1739398957145,3.2078,2738.0,2737.4,6.42106514]
[1739398957347,0.00548526,2738.8,2738.3,3.21326514]
[1739398957755,0.00548526,2738.8,2737.7,3.2078]
[1739398958060,0.00548526,2738.8,2738.7,3.21326514]
[1739398958254,0.03074847,2741.4,2738.7,3.94350514]
[1739398958255,3.2078,2741.1,2738.7,3.94350514]
[1739398958459,3.2078,2739.4,2738.6,3.2078]
[1739398958958,3.2078,2738.9,2737.7,3.2078]
[1739398959154,3.2078,2738.2,2737.5,3.21326514]
[1739398959355,3.2078,2738.2,2734.9,5.36201147]
[1739398959356,3.2078,2738.2,2738.0,0.00547505]
[1739398959551,0.05790635,2738.1,2736.4,3.2078]
[1739398959755,3.2078,2737.7,2736.5,3.21326514]
[1739398959957,0.562,2738.7,2736.1,3.2078]
[1739398959958,19.20390635,2737.6,2736.1,3.2078]
[1739398960162,3.2078,2736.8,2736.2,3.2078]
[1739398960357,19.146,2738.4,2736.2,3.2078]
[1739398960662,3.2078,2737.4,2737.0,0.00547505]
[1739398960855,0.00547505,2737.6,2737.3,3.21326514]
[1739398961058,3.2078,2739.7,2738.1,0.73038]
[1739398961259,8.75741384,2740.9,2738.5,3.2078]
[1739398961260,0.05788707,2739.6,2738.5,3.2078]
[1739398961453,19.146,2740.1,2739.3,3.21326514]
[1739398961659,19.146,2740.1,2738.8,3.2078]
[1739398961660,0.05785222,2740.0,2738.8,3.2078]
[1739398962057,6.05785222,2740.0,2737.0,3.2078]
[1739398962261,0.00547505,2739.7,2737.4,3.2078]
[1739398962455,3.2078,2738.8,2738.1,6.42106514]
[1739398962759,19.146,2738.7,2738.4,3.21326514]
[1739398962959,19.142,2739.0,2737.6,3.21326514]
[1739398963258,19.19988634,2738.9,2737.7,3.2078]
[1739398963458,0.00547505,2738.6,2738.0,0.00547505]
[1739398964066,0.00547505,2738.6,2738.4,3.21326514]
[1739398964366,0.00547505,2738.6,2738.5,3.21326514]
[1739398964861,3.2078,2741.2,2738.9,1.82546]
[1739398965063,3.2078,2741.4,2739.7,3.2078]
[1739398965269,3.2078,2742.1,2741.0,3.21326514]
[1739398965467,0.05782325,2742.0,2741.0,3.21326514]
[1739398965661,0.05782325,2742.0,2740.0,3.2078]
[1739398965861,0.00547505,2741.8,2738.9,3.2078]
[1739398966064,3.2078,2740.1,2739.7,3.21326514]
[1739398966255,0.756,2742.5,2739.4,3.2078]
[1739398966256,3.2078,2739.8,2739.4,3.2078]
[1739398966462,3.2078,2739.7,2738.8,3.2078]
[1739398966766,3.2078,2738.9,2738.1,3.21326514]
[1739398966961,8.75741384,2741.0,2738.4,3.21326514]
[1739398966962,19.134,2739.0,2738.4,3.21326514]
[1739398967164,0.00547505,2738.8,2738.4,3.21326514]
[1739398967762,0.00547505,2738.8,2738.7,6.42106514]
[1739398967959,0.00547505,2738.8,2738.7,3.21326514]
[1739398968166,3.2078,2739.8,2738.7,6.42106514]
[1739398968363,3.2078,2741.0,2738.7,3.2078]
[1739398968667,19.134,2741.2,2739.0,3.2078]
[1739398968668,0.0578572,2740.9,2739.0,3.2078]
[1739398968977,3.2078,2740.4,2740.2,3.21326514]
[1739398969468,0.00547505,2740.6,2740.2,3.21326514]
[1739398969863,0.00547505,2740.6,2740.0,0.00547505]
[1739398970163,3.2078,2740.1,2738.6,3.2078]
[1739398970363,3.2078,2739.3,2738.6,3.21326514]
[1739398970561,22.3408,2739.3,2738.6,3.21326514]
[1739398970763,0.05788183,2739.2,2737.3,3.2078]
[1739398970959,0.05788183,2739.2,2738.5,3.21326514]
[1739398971368,0.00547505,2739.1,2738.8,3.21326514]
[1739398971671,8.75741384,2741.1,2738.6,0.00547505]
[1739398971672,3.2078,2740.5,2739.0,3.21326514]
[1739398971963,0.05785885,2740.4,2739.7,3.21326514]
[1739398972169,3.2078,2740.7,2739.8,3.21326514]
[1739398972469,0.05784515,2740.6,2739.9,3.21326514]
[1739398972769,0.00547505,2740.5,2740.0,3.21874019]
[1739398972973,3.2078,2740.1,2739.2,3.21326514]
[1739398973276,3.2078,2739.3,2738.1,3.21326514]
[1739398973473,0.0578437,2739.2,2738.1,3.21326514]
[1739398973665,0.0578437,2739.2,2737.8,3.2078]
[1739398973666,3.2078,2738.8,2737.8,3.2078]
[1739398973968,19.134,2738.7,2737.8,3.21326514]
[1739398974164,22.3418,2738.7,2737.8,3.21326514]
[1739398974364,3.2078,2738.5,2738.0,0.00547505]
[1739398974665,0.00547505,2738.6,2738.2,3.2078]
[1739398974865,0.00547505,2738.6,2738.3,3.21326514]
[1739398975061,0.00547505,2738.6,2738.0,0.00547505]
[1739398975972,0.00547505,2738.6,2738.2,6.42106514]
[1739398976172,6.00547505,2738.6,2738.0,0.00547505]
[1739398976366,3.26568969,2738.5,2736.9,3.21326514]
[1739398976568,3.26568969,2738.4,2736.9,3.21326514]
[1739398976767,3.2078,2738.2,2736.2,3.2078]
[1739398976961,3.2078,2737.6,2736.6,3.21326514]
[1739398977166,0.05788969,2737.5,2736.6,3.21326514]
[1739398977362,3.2078,2737.4,2736.6,3.21326514]
[1739398977568,0.05788969,2737.3,2736.6,3.21326514]
[1739398977764,3.2078,2738.0,2736.2,3.2078]
[1739398977976,3.26571377,2737.9,2736.5,3.2078]
[1739398978162,0.00547505,2737.4,2736.7,3.21326514]
[1739398978366,3.26572185,2737.3,2736.3,3.21326514]
[1739398978562,0.05792185,2737.2,2736.9,3.21326514]
[1739398978767,0.00547505,2737.4,2736.6,3.21326514]
[1739398978970,0.00547505,2737.4,2736.2,3.2078]
[1739398978971,0.05791994,2737.3,2736.4,3.21326514]
[1739398979275,0.05791994,2737.3,2736.2,3.2078]
[1739398979466,0.05791994,2737.3,2736.6,3.21326514]
[1739398979666,0.05791994,2737.3,2736.3,3.21326514]
[1739398979867,3.2078,2736.6,2736.3,3.21326514]
[1739398980170,19.138,2736.8,2735.2,3.2078]
[1739398980470,3.2078,2735.8,2735.6,3.21326514]
[1739398980773,3.2078,2735.8,2735.4,3.21326514]
[1739398981071,0.00547505,2736.0,2735.4,3.21326514]
[1739398981267,0.00547505,2736.0,2734.5,3.2078]
[1739398981465,0.00547505,2736.0,2734.7,3.21326514]
[1739398981466,3.2078,2735.6,2734.7,3.21326514]
[1739398981873,3.2078,2735.5,2734.7,3.21326514]
[1739398982076,19.142,2735.4,2734.7,3.21326514]
[1739398982278,3.2078,2735.3,2733.7,3.2078]
[1739398982472,3.2078,2735.3,2734.4,3.21326514]
[1739398982669,0.00548506,2734.8,2734.4,3.21326514]
[1739398982869,3.2078,2734.6,2733.7,3.2078]
[1739398983075,3.2078,2734.6,2734.1,3.21326514]
[1739398983375,3.2078,2734.5,2734.1,3.21326514]
[1739398983571,3.2078,2734.4,2734.1,3.21326514]
[1739398983779,25.15448506,2734.8,2732.6,3.2078]
[1739398984077,3.2078,2733.9,2732.8,3.21326514]
[1739398984374,3.2078,2733.5,2732.7,3.21326514]
[1739398984575,19.149,2733.4,2732.7,3.21326514]
[1739398985070,19.149,2733.4,2732.2,3.2078]
[1739398985273,3.2078,2733.2,2731.3,3.2078]
[1739398985471,3.2078,2732.6,2731.6,3.21326514]
[1739398985672,19.149,2733.4,2731.8,3.21326514]
[1739398985673,0.00548506,2732.5,2731.8,3.21326514]
[1739398986068,0.00548506,2732.5,2731.9,3.21326514]
[1739398986375,0.00548506,2732.5,2731.7,3.21326514]
[1739398986882,3.21328506,2732.5,2731.7,3.21326514]
[1739398987072,1.1354,2734.7,2732.4,3.20778008]
[1739398987073,3.2078,2734.3,2732.4,3.20778008]
[1739398987270,19.159,2734.4,2733.2,3.20778008]
[1739398987271,3.2078,2733.8,2733.2,3.20778008]
[1739398987471,22.3668,2734.4,2732.2,3.2078]
[1739398987676,19.159,2734.4,2733.0,3.20778008]
[1739398987874,3.2078,2734.1,2733.0,3.20778008]
[1739398988379,3.2078,2733.4,2731.9,3.2078]
[1739398988674,6.0,2734.1,2733.3,5.06e-06]
[1739398988881,3.2078,2733.4,2731.6,3.2078]
[1739398989073,3.2078,2733.4,2731.8,3.20778008]
[1739398989273,3.2078,2732.3,2732.0,3.20778008]
[1739398989473,19.159,2732.4,2732.0,0.732]
[1739398989675,19.159,2733.3,2733.0,3.20778008]
[1739398989875,19.165,2733.4,2732.8,3.20778008]
[1739398990069,3.2078,2733.2,2732.3,3.20778008]